fUST/lending_fUST_20260118
["ID","MTS","AMOUNT","RATE_DAILY","PERIOD"]
[402628992,1768729838575,-329.21488957,9.746e-05,2]
[402628994,1768729838588,-3388.13856654,0.00010011,2]
[402628997,1768729838606,-1611.86143346,0.00010011,2]
[402628999,1768729838618,-1005.43456456,0.00010393,2]
[402629195,1768729840803,-3e-08,0.00010393,2]
[402629197,1768729840817,-364.81928846,0.00010393,2]
[402629314,1768729842116,-1401.51041736,0.00010393,2]
[402629317,1768729842127,-9911.99645793,0.00010393,2]
[402629416,1768729843594,-477.26040614,0.00010393,2]
[402629422,1768729843645,-1345.18676271,0.00010393,2]
[402629711,1768729846578,-1575.85133662,0.00010393,2]
[402631626,1768729879474,496.79,7.516e-05,2]
[402631627,1768729879878,993.59,8.2e-05,2]
[402631628,1768729880492,1490.38,8.883e-05,2]
[402631629,1768729880692,1987.18,9.566e-05,2]
[402631630,1768729957613,521.24,7.424e-05,2]
[402631631,1768729958030,135.57,8.099e-05,2]
[402631632,1768729958056,906.92,8.099e-05,2]
[402631633,1768729958454,1563.73,8.774e-05,2]
[402631634,1768729958880,2084.97,9.449e-05,2]
[402631635,1768729972325,4021.89102572,9.608e-05,2]
[402631636,1768730036969,556.06,7.455e-05,2]
[402631637,1768730037401,866.43897428,8.132e-05,2]
[402631638,1768730037424,245.68102572,8.132e-05,2]
[402631639,1768730037797,1668.18,8.81e-05,2]
[402631640,1768730038223,2224.24,9.488e-05,2]
[402631641,1768730053228,5000.0,9.608e-05,2]
[402631642,1768730075474,861.90897428,9.608e-05,2]
[402631643,1768730075496,4138.09102572,9.608e-05,2]
[402631644,1768730083526,399.0160757,9.608e-05,2]
[402631645,1768730115574,682.48,9.178e-05,2]
[402631646,1768730195697,673.92,9.178e-05,2]
[402631647,1768730276372,665.34,7.462e-05,2]
[402631648,1768730276778,1330.68,8.14e-05,2]
[402631649,1768730277318,1996.02,8.819e-05,2]
[402631650,1768730277684,114.46289858,9.497e-05,2]
[402631651,1768730277711,2546.88710142,9.497e-05,2]
[402631652,1768730358049,580.66,7.478e-05,2]
[402631653,1768730358457,1161.32,8.158e-05,2]
[402631654,1768730358855,1741.98,8.838e-05,2]
[402631655,1768730359252,2322.64,9.518e-05,2]
[402631656,1768730367435,1646.52289858,9.608e-05,2]
[402631657,1768730367459,2743.13221259,9.608e-05,2]
[402631658,1768730431153,-557.0,9.773e-05,2]
[402631659,1768730431184,-332.99259797,9.774e-05,2]
[402631660,1768730431214,-378.61517794,9.776e-05,2]
[402631661,1768730431245,-1514.46071177,0.00010108,2]
[402631662,1768730431278,-1530.58302464,0.00010197,2]
[402631663,1768730433952,-1057.0,0.00010325,2]
[402631664,1768730433982,-300.0,0.00010326,2]
[402631665,1768730434236,-300.0,0.00010326,2]
[402631666,1768730434266,-300.0,0.00010326,2]
[402631667,1768730434294,-500.0,0.00010327,2]
[402631668,1768730437994,584.8,7.514e-05,2]
[402631669,1768730438396,1169.61,8.197e-05,2]
[402631670,1768730438815,1754.41,8.88e-05,2]
[402631671,1768730440578,-2339.21,9.564e-05,2]
[402631672,1768730440609,-2397.57,0.00010247,2]
[402631673,1768730515880,461.16,7.425e-05,2]
[402631674,1768730516278,922.32,8.1e-05,2]
[402631675,1768730517197,1383.48,8.775e-05,2]
[402631676,1768730517679,1844.64,9.45e-05,2]
[402631678,1768730572371,-2305.8,0.00010125,2]
[402631679,1768730572399,-326.33274601,0.00010286,2]
[402631680,1768730572429,-500.0,0.00010325,2]
[402631681,1768730572457,-500.0,0.00010325,2]
[402631682,1768730572485,-183.16397314,0.00010325,2]
[402631683,1768730572515,-500.0,0.00010325,2]
[402631684,1768730572542,-500.0,0.00010325,2]
[402631685,1768730575031,-500.0,0.00010325,2]
[402631686,1768730575061,-500.0,0.00010325,2]
[402631687,1768730575089,-500.0,0.00010325,2]
[402631688,1768730575117,-500.0,0.00010325,2]
[402631689,1768730575144,-500.0,0.00010325,2]
[402631690,1768730575172,-500.0,0.00010325,2]
[402631691,1768730575200,-230.82611617,0.00010325,2]
[402631692,1768730575227,-500.0,0.00010325,2]
[402631693,1768730575254,-500.0,0.00010325,2]
[402631694,1768730575282,-602.53359505,0.00010325,2]
[402631695,1768730578045,-500.0,0.00010325,2]
[402631696,1768730578072,-500.0,0.00010325,2]
[402631697,1768730578102,-500.0,0.00010325,2]
[402631698,1768730578134,-500.0,0.00010325,2]
[402631699,1768730578162,-500.0,0.00010325,2]
[402631700,1768730578191,-500.0,0.00010325,2]
[402631701,1768730578221,-500.0,0.00010325,2]
[402631702,1768730578249,-500.0,0.00010325,2]
[402631703,1768730578279,-500.0,0.00010325,2]
[402631704,1768730578308,-500.0,0.00010325,2]
[402631705,1768730581067,-500.0,0.00010325,2]
[402631706,1768730581096,-500.0,0.00010325,2]
[402631707,1768730581124,-500.0,0.00010325,2]
[402631708,1768730581153,-500.0,0.00010325,2]
[402631709,1768730581345,-500.0,0.00010325,2]
[402631710,1768730581374,-500.0,0.00010325,2]
[402631711,1768730581402,-500.0,0.00010325,2]
[402631712,1768730581432,-500.0,0.00010325,2]
[402631713,1768730581463,-602.34036979,0.00010325,2]
[402631714,1768730581491,-295.32926042,0.00010325,2]
[402631715,1768730595947,374.12,7.433e-05,2]
[402631716,1768730596369,748.24,8.108e-05,2]
[402631717,1768730596789,1122.37,8.784e-05,2]
[402631718,1768730597737,1496.49,9.46e-05,2]
[402631723,1768730674702,350.77,7.462e-05,2]
[402631724,1768730675103,701.54,8.141e-05,2]
[402631725,1768730675524,1052.31,8.819e-05,2]
[402631726,1768730675963,1403.08,9.498e-05,2]
[402631728,1768730711007,170.4312501,4.613e-05,2]
[402631729,1768730738325,300.0,9.223e-05,2]
[402631733,1768730753743,342.05,7.451e-05,2]
[402631734,1768730754649,684.09,8.129e-05,2]
[402631735,1768730754695,1026.14,8.806e-05,2]
[402631736,1768730754921,228.3787499,9.483e-05,2]
[402631737,1768730754945,1139.8112501,9.483e-05,2]
[402631741,1768730827123,8860.1987499,9.152e-05,2]
[402631742,1768730827146,10000.01,9.152e-05,2]
[402631743,1768730827168,10000.01,9.152e-05,2]
[402631744,1768730827190,10000.01,9.152e-05,2]
[402631745,1768730827212,10000.01,9.152e-05,2]
[402631746,1768730827233,10000.01,9.152e-05,2]
[402631747,1768730827256,10000.01,9.152e-05,2]
[402631748,1768730827278,10000.01,9.152e-05,2]
[402631749,1768730827300,10000.01,9.152e-05,2]
[402631750,1768730827320,10000.01,9.152e-05,2]
[402631751,1768730831288,-841.61912278,9.152e-05,2]
[402631752,1768730832835,-343.64082838,9.152e-05,2]
[402631753,1768730833063,309.27,7.423e-05,2]
[402631754,1768730833476,618.55,8.098e-05,2]
[402631755,1768730833892,927.82,8.773e-05,2]
[402631756,1768730834879,-165.27917162,9.152e-05,2]
[402631757,1768730837441,-451.1094133,9.152e-05,2]
[402631758,1768730840925,-165.18982704,9.152e-05,2]
[402631759,1768730842863,-156.52863723,9.152e-05,2]
[402631760,1768730845623,-444.07622346,9.152e-05,2]
[402631761,1768730847160,-163.15566933,9.152e-05,2]
[402631762,1768730848769,-270.2105867,9.152e-05,2]
[402631763,1768730852153,-207.67538506,9.152e-05,2]
[402631764,1768730855371,-309.0923362,9.152e-05,2]
[402631765,1768730860602,-264.74069852,9.09e-05,2]
[402631766,1768730860963,-1979.74922255,9.09e-05,2]
[402631767,1768730860992,-10000.01,9.09e-05,2]
[402631768,1768730861024,-10000.01,9.09e-05,2]
[402631769,1768730861148,-10000.01,9.09e-05,2]
[402631770,1768730861296,-10000.01,9.09e-05,2]
[402631771,1768730861408,-1135.38754863,9.09e-05,2]
[402631772,1768730861441,-7729.23490274,9.152e-05,2]
[402631773,1768730862063,-808.79097989,9.152e-05,2]
[402631774,1768730863305,-10000.01,9.152e-05,2]
[402631775,1768730863408,-10000.01,9.152e-05,2]
[402631776,1768730863523,-10000.01,9.152e-05,2]
[402631777,1768730863622,-10000.01,9.152e-05,2]
[402631778,1768730868214,-169.83519067,9.152e-05,2]
[402631779,1768730869831,-203.20803785,9.06e-05,2]
[402631780,1768730871825,-93.20164186,9.06e-05,2]
[402631781,1768730871846,-457.97215443,9.152e-05,2]
[402631782,1768730873410,-450.37351012,9.152e-05,2]
[402631783,1768730876542,5000.0,9.06e-05,2]
[402631784,1768730877203,-512.26803785,9.152e-05,2]
[402631785,1768730883342,223.01,1.998e-05,2]
[402631786,1768730883618,223.01,1.998e-05,2]
[402631787,1768730898609,5000.0,9.061e-05,2]
[402631788,1768730911941,974.77,7.486e-05,2]
[402631789,1768730912342,1949.55,8.166e-05,2]
[402631790,1768730912747,2075.69,8.847e-05,2]
[402631791,1768730912772,848.63,8.847e-05,2]
[402631792,1768730921209,5000.0,9.061e-05,2]
[402631793,1768730936045,390.02072781,9.061e-05,2]
[402631794,1768730943889,3761.35927219,9.061e-05,2]
[402631795,1768730943914,1238.64072781,9.061e-05,2]
[402631796,1768730960886,-213.14155788,9.15e-05,2]
[402631797,1768730964074,-86.85844212,9.15e-05,2]
[402631798,1768730964098,-138.98887584,9.151e-05,2]
[402631799,1768730965548,-229.44388595,9.151e-05,2]
[402631800,1768730966823,5000.0,9.061e-05,2]
[402631801,1768730975673,3761.36927219,9.061e-05,2]
[402631802,1768730975695,1238.63072781,9.061e-05,2]
[402631803,1768730991596,5000.0,9.061e-05,2]
[402631804,1768730991702,950.67,8.047e-05,2]
[402631805,1768730992123,1901.34,8.778e-05,2]
[402631806,1768730995291,-131.56723821,9.151e-05,2]
[402631807,1768730999425,5000.0,9.151e-05,2]
[402631808,1768731001084,4736.87552358,9.151e-05,2]
[402631809,1768731001107,10000.01,9.151e-05,2]
[402631810,1768731001335,10000.01,9.151e-05,2]
[402631811,1768731001366,10000.01,9.151e-05,2]
[402631812,1768731001388,10000.01,9.151e-05,2]
[402631813,1768731001410,5263.08447642,9.151e-05,2]
[402631814,1768731002339,300.0,9.15e-05,2]
[402631815,1768731006450,500.0,9.151e-05,2]
[402631816,1768731015034,5000.0,9.151e-05,2]
[402631817,1768731022806,5000.0,9.151e-05,2]
[402631818,1768731025714,-247.83556139,9.151e-05,2]
[402631819,1768731025742,-536.37677055,9.151e-05,2]
[402631820,1768731025772,-500.0,9.151e-05,2]
[402631821,1768731025805,-500.0,9.151e-05,2]
[402631822,1768731025837,-500.0,9.151e-05,2]
[402631823,1768731025871,-500.0,9.151e-05,2]
[402631824,1768731025901,-500.0,9.151e-05,2]
[402631825,1768731025931,-500.0,9.151e-05,2]
[402631826,1768731025960,-500.0,9.151e-05,2]
[402631827,1768731025990,-500.0,9.151e-05,2]
[402631828,1768731026235,-500.0,9.151e-05,2]
[402631829,1768731026264,-500.0,9.151e-05,2]
[402631830,1768731026293,-500.0,9.151e-05,2]
[402631831,1768731026322,-500.0,9.151e-05,2]
[402631832,1768731026352,-500.0,9.151e-05,2]
[402631833,1768731026382,-500.0,9.151e-05,2]
[402631834,1768731026412,-500.0,9.151e-05,2]
[402631835,1768731026442,-500.0,9.151e-05,2]
[402631836,1768731026715,-500.0,9.151e-05,2]
[402631837,1768731026747,-500.0,9.151e-05,2]
[402631838,1768731026886,-500.0,9.151e-05,2]
[402631839,1768731026915,-500.0,9.151e-05,2]
[402631840,1768731026945,-500.0,9.151e-05,2]
[402631841,1768731026975,-500.0,9.151e-05,2]
[402631842,1768731027005,-500.0,9.151e-05,2]
[402631843,1768731027032,-500.0,9.151e-05,2]
[402631844,1768731027066,-500.0,9.151e-05,2]
[402631845,1768731027098,-500.0,9.151e-05,2]
[402631846,1768731027129,-500.0,9.151e-05,2]
[402631847,1768731027160,-500.0,9.151e-05,2]
[402631848,1768731027252,-173.37768452,9.151e-05,2]
[402631849,1768731027282,-500.0,9.151e-05,2]
[402631850,1768731027314,-500.0,9.151e-05,2]
[402631851,1768731027342,-500.0,9.151e-05,2]
[402631852,1768731027371,-500.0,9.151e-05,2]
[402631853,1768731027401,-500.0,9.151e-05,2]
[402631854,1768731027431,-500.0,9.151e-05,2]
[402631855,1768731027466,-500.0,9.151e-05,2]
[402631856,1768731027495,-500.0,9.151e-05,2]
[402631857,1768731027523,-545.90376856,9.151e-05,2]
[402631858,1768731027551,-158.45600807,9.151e-05,2]
[402631859,1768731027688,-244.5350777,9.151e-05,2]
[402631860,1768731027717,-500.0,9.151e-05,2]
[402631861,1768731027748,-500.0,9.151e-05,2]
[402631862,1768731027780,-500.0,9.151e-05,2]
[402631863,1768731027814,-500.0,9.151e-05,2]
[402631864,1768731027849,-500.0,9.151e-05,2]
[402631865,1768731027881,-500.0,9.151e-05,2]
[402631866,1768731027912,-500.0,9.151e-05,2]
[402631867,1768731027941,-500.0,9.151e-05,2]
[402631868,1768731027972,-500.0,9.151e-05,2]
[402631869,1768731028003,-10.9398446,9.151e-05,2]
[402631870,1768731029632,-489.0601554,9.151e-05,2]
[402631871,1768731029663,-500.0,9.151e-05,2]
[402631872,1768731029693,-500.0,9.151e-05,2]
[402631873,1768731029723,-523.16467896,9.151e-05,2]
[402631874,1768731029752,-500.0,9.151e-05,2]
[402631875,1768731029783,-611.70517239,9.151e-05,2]
[402631876,1768731029818,-500.0,9.151e-05,2]
[402631877,1768731029852,-500.0,9.151e-05,2]
[402631878,1768731029884,-500.0,9.151e-05,2]
[402631879,1768731029915,-252.1499865,9.151e-05,2]
[402631880,1768731029999,-247.8500135,9.151e-05,2]
[402631881,1768731030029,-500.0,9.151e-05,2]
[402631882,1768731030059,-500.0,9.151e-05,2]
[402631883,1768731030088,-500.0,9.151e-05,2]
[402631884,1768731030119,-500.0,9.151e-05,2]
[402631885,1768731030150,-500.0,9.151e-05,2]
[402631886,1768731030181,-500.0,9.151e-05,2]
[402631887,1768731030213,-500.0,9.151e-05,2]
[402631888,1768731030245,-500.0,9.151e-05,2]
[402631889,1768731030275,-500.0,9.151e-05,2]
[402631890,1768731030305,-4.309973,9.151e-05,2]
[402631891,1768731032054,-495.690027,9.151e-05,2]
[402631892,1768731032086,-500.0,9.151e-05,2]
[402631893,1768731032119,-500.0,9.151e-05,2]
[402631894,1768731032153,-500.0,9.151e-05,2]
[402631898,1768731032187,-500.0,9.151e-05,2]
[402631899,1768731032218,-500.0,9.151e-05,2]
[402631900,1768731032251,-500.0,9.151e-05,2]
[402631901,1768731032283,-500.0,9.151e-05,2]
[402631905,1768731032314,-500.0,9.151e-05,2]
[402631909,1768731032344,-500.0,9.151e-05,2]
[402631921,1768731032510,-500.0,9.151e-05,2]
[402631924,1768731032540,-500.0,9.151e-05,2]
[402631928,1768731032570,-500.0,9.151e-05,2]
[402631932,1768731032600,-500.0,9.151e-05,2]
[402631935,1768731032630,-500.0,9.151e-05,2]
[402631936,1768731032661,-500.0,9.151e-05,2]
[402631937,1768731032689,-500.0,9.151e-05,2]
[402631938,1768731032719,-500.0,9.151e-05,2]
[402631939,1768731032748,-500.0,9.151e-05,2]
[402631940,1768731032779,-500.0,9.151e-05,2]
[402631941,1768731033148,-500.0,9.151e-05,2]
[402631942,1768731033181,-500.0,9.151e-05,2]
[402631943,1768731033212,-500.0,9.151e-05,2]
[402631944,1768731033243,-500.0,9.151e-05,2]
[402631945,1768731033276,-500.0,9.151e-05,2]
[402631946,1768731033308,-500.0,9.151e-05,2]
[402631947,1768731033338,-500.0,9.151e-05,2]
[402631948,1768731033367,-155.21479353,9.151e-05,2]
[402631949,1768731033397,-500.0,9.151e-05,2]
[402631950,1768731033430,-500.0,9.151e-05,2]
[402631951,1768731033462,-189.58041294,9.151e-05,2]
[402631952,1768731033531,-310.41958706,9.151e-05,2]
[402631953,1768731033601,-303.41490542,9.151e-05,2]
[402631954,1768731033614,-244.58509458,9.151e-05,2]
[402631955,1768731033624,-1536.62008693,9.152e-05,2]
[402631956,1768731033713,-5003.39908419,9.152e-05,2]
[402631957,1768731033724,-9411.18750911,9.152e-05,2]
[402631962,1768731038640,5000.0,9.151e-05,2]
[402631963,1768731038710,-84887.30234627,9.152e-05,2]
[402631964,1768731038721,-497.10444444,9.425e-05,2]
[402631965,1768731038731,-196.11982262,9.444e-05,2]
[402631967,1768731038741,-2852.01,9.51e-05,2]
[402631968,1768731038751,-326.28309474,9.871e-05,2]
[402631970,1768731038760,-207.71430093,0.00010025,2]
[402631972,1768731038770,-420.0,0.00010065,2]
[402631973,1768731038779,-800.0,0.00010073,2]
[402631974,1768731038792,-305.0799874,0.000101,2]
[402631976,1768731038803,-800.0,0.00010121,2]
[402631978,1768731038816,-311.1427757,0.000102,2]
[402631980,1768731038834,-800.0,0.00010204,2]
[402631981,1768731038844,-800.0,0.00010206,2]
[402631982,1768731038854,-6429.429182,0.00010216,2]
[402631983,1768731038865,-500.0,0.00010216,2]
[402631984,1768731038875,-500.0,0.00010216,2]
[402631985,1768731038885,-291.85599442,0.00010216,2]
[402631986,1768731038894,-153.80727598,0.00010216,2]
[402631988,1768731038904,-3802.68,0.00010242,2]
[402631989,1768731038914,-687.75,0.00010269,2]
[402631990,1768731038923,-176.48,0.00010269,2]
[402631991,1768731038934,-176.48,0.00010269,2]
[402631992,1768731038943,-305.0799874,0.0001028,2]
[402631993,1768731038952,-2150.738,0.00010318,2]
[402631994,1768731038962,-1957.856,0.00010318,2]
[402631995,1768731038971,-297.0,0.00010319,2]
[402631996,1768731038981,-254.4399633,0.00010319,2]
[402631997,1768731038991,-445.202766,0.00010319,2]
[402631998,1768731039003,-272.67,0.00010324,2]
[402631999,1768731039013,-178.401,0.00010326,2]
[402632000,1768731039024,-485.068,0.00010326,2]
[402632001,1768731039035,-1060.30693888,0.00010327,2]
[402632002,1768731039047,-5805.4258287,0.00010329,2]
[402632003,1768731039058,-500.0,0.00010353,2]
[402632004,1768731039068,-500.0,0.00010353,2]
[402632005,1768731039079,-500.0,0.00010364,2]
[402632006,1768731039088,-500.0,0.00010364,2]
[402632007,1768731039098,-500.0,0.00010364,2]
[402632008,1768731039108,-500.0,0.00010364,2]
[402632009,1768731039118,-500.0,0.00010364,2]
[402632010,1768731039128,-500.0,0.00010364,2]
[402632011,1768731039138,-500.0,0.00010364,2]
[402632012,1768731039147,-179.19406929,0.00010364,2]
[402632013,1768731039156,-500.0,0.00010364,2]
[402632014,1768731039165,-500.0,0.00010364,2]
[402632015,1768731039175,-500.0,0.00010364,2]
[402632016,1768731039184,-199.81913383,0.00010364,2]
[402632017,1768731039193,-500.0,0.00010364,2]
[402632018,1768731039203,-200.37737228,0.00010364,2]
[402632019,1768731039212,-39422.8524464,0.0001037,2]
[402632020,1768731039222,-2030.296672,0.00010373,2]
[402632021,1768731039232,-305.0799874,0.000104,2]
[402632022,1768731039245,-500.0,0.000104,2]
[402632023,1768731039254,-500.0,0.000104,2]
[402632024,1768731039263,-500.0,0.000104,2]
[402632025,1768731039273,-815.90654159,0.000104,2]
[402632026,1768731039282,-932.30062826,0.000104,2]
[402632027,1768731039292,-500.0,0.000104,2]
[402632028,1768731039301,-500.0,0.000104,2]
[402632029,1768731039310,-799.47825496,0.000104,2]
[402632030,1768731039319,-500.0,0.000104,2]
[402632031,1768731039329,-500.0,0.000104,2]
[402632032,1768731039339,-500.0,0.000104,2]
[402632033,1768731039349,-874.82845543,0.000104,2]
[402632034,1768731039358,-603.83314459,0.000104,2]
[402632035,1768731039367,-831.64656093,0.000104,2]
[402632036,1768731039377,-500.0,0.000104,2]
[402632037,1768731039387,-147.52922503,0.000104,2]
[402632075,1768731040856,-197.19314532,0.00010112,2]
[402632077,1768731040867,-352.47077497,0.000104,2]
[402632079,1768731040876,-781.11335863,0.000104,2]
[402632081,1768731040885,-250.0,0.00010411,2]
[402632083,1768731040895,-2105.41764886,0.00010428,2]
[402632085,1768731040904,-783.6948112,0.00010468,2]
[402632087,1768731040914,-2183.31810187,0.00010483,2]
[402632089,1768731040923,-500.0,0.0001049,2]
[402632091,1768731040932,-500.0,0.0001049,2]
[402632093,1768731040941,-153.0,0.000105,2]
[402632095,1768731040952,-305.0799874,0.000105,2]
[402632097,1768731040963,-305.0799874,0.000105,2]
[402632098,1768731040974,-305.0799874,0.000105,2]
[402632100,1768731040984,-500.0,0.00010501,2]
[402632103,1768731040994,-500.0,0.00010501,2]
[402632105,1768731041003,-500.0,0.00010501,2]
[402632106,1768731041013,-500.0,0.00010501,2]
[402632108,1768731041023,-500.0,0.00010501,2]
[402632110,1768731041032,-500.0,0.00010501,2]
[402632113,1768731041043,-500.0,0.00010501,2]
[402632115,1768731041053,-500.0,0.00010501,2]
[402632116,1768731041063,-500.0,0.00010501,2]
[402632118,1768731041072,-500.0,0.00010501,2]
[402632121,1768731041082,-600.0,0.00010501,2]
[402632123,1768731041091,-604.29764886,0.00010538,2]
[402632124,1768731041100,-300.0,0.00010627,2]
[402632127,1768731041110,-500.0,0.00010627,2]
[402632128,1768731041119,-500.0,0.00010638,2]
[402632131,1768731041128,-500.0,0.00010638,2]
[402632132,1768731041138,-371.65237339,0.00010638,2]
[402632135,1768731041149,-500.0,0.00010638,2]
[402632136,1768731041157,-500.0,0.00010638,2]
[402632138,1768731041166,-216.84280402,0.00010638,2]
[402632140,1768731041176,-500.0,0.00010638,2]
[402632142,1768731041185,-151.14258472,0.00010638,2]
[402632144,1768731041194,-150.36819208,0.00010638,2]
[402632146,1768731041203,-150.25763675,0.00010638,2]
[402632148,1768731041212,-470.4678399,0.00010644,2]
[402632150,1768731041222,-291.12942413,0.00010644,2]
[402632152,1768731041231,-656.2841397,0.00010644,2]
[402632154,1768731041240,-1315.54269873,0.00010644,2]
[402632156,1768731041250,-3407.53660148,0.00010644,2]
[402632158,1768731041259,-2622.51142225,0.00010644,2]
[402632160,1768731041268,-2425.97698722,0.00010644,2]
[402632182,1768731041471,-3e-08,0.00010644,2]
[402632184,1768731041482,-3625.80801697,0.00010644,2]
[402632186,1768731041492,-153.0,0.000107,2]
[402632188,1768731041501,-153.0,0.000107,2]
[402632190,1768731041510,-384.27078509,0.00010734,2]
[402632192,1768731041520,-500.0,0.00010764,2]
[402632194,1768731041529,-500.0,0.00010775,2]
[402632196,1768731041538,-500.0,0.00010775,2]
[402632198,1768731041547,-500.0,0.00010775,2]
[402632200,1768731041556,-483.44353487,0.00010775,2]
[402632202,1768731041565,-500.0,0.00010775,2]
[402632204,1768731041575,-153.0,0.000108,2]
[402632206,1768731041584,-2230.315306,0.00010866,2]
[402632208,1768731041593,-461.67526834,0.00010867,2]
[402632210,1768731041603,-153.0,0.000109,2]
[402632212,1768731041612,-500.0,0.00010912,2]
[402632214,1768731041621,-500.0,0.00010912,2]
[402632216,1768731041630,-500.0,0.00010912,2]
[402632218,1768731041639,-180.0,0.00010912,2]
[402632220,1768731041648,-5797.92964201,0.0001094,2]
[402632222,1768731041658,-227.61759709,0.00010959,2]
[402632224,1768731041667,-3748.63763779,0.00010973,2]
[402632226,1768731041681,-1004.71236221,0.00010973,2]
[402632228,1768731041690,-615.1378565,0.00010994,2]
[402632231,1768731041700,-500.0,0.00011049,2]
[402632233,1768731041709,-587.0,0.00011071,2]
[402632235,1768731041718,-500.0,0.00011186,2]
[402632237,1768731041727,-1434.599563,0.0001125,2]
[402632239,1768731041736,-500.0,0.00011323,2]
[402632241,1768731041745,-128.29056246,0.00011373,2]
[402632429,1768731043724,-8668.13681734,0.00011373,2]
[402632431,1768731043733,-2312.83697232,0.00011414,2]
[402632433,1768731043743,-478.75725327,0.00011415,2]
[402632435,1768731043753,-345.0,0.0001146,2]
[402632437,1768731043762,-320.1024302,0.0001148,2]
[402632439,1768731043770,-348.0,0.00011485,2]
[402632441,1768731043780,-262.15954443,0.00011485,2]
[402632443,1768731043795,-85.84045557,0.00011485,2]
[402632445,1768731043804,-348.0,0.00011485,2]
[402632446,1768731043813,-270.2703129,0.00011485,2]
[402632449,1768731043823,-195.43396388,0.00011539,2]
[402632451,1768731043832,-260.57861851,0.00011539,2]
[402632452,1768731043841,-274.06752159,0.00011564,2]
[402632454,1768731043850,-629.35116649,0.00011564,2]
[402632456,1768731043859,-1962.74825,0.00011597,2]
[402632458,1768731043872,-388.74323194,0.00011617,2]
[402632460,1768731043881,-1295.3655949,0.00011636,2]
[402632462,1768731043890,-2148.0,0.00011676,2]
[402632464,1768731043899,-629.0,0.00011676,2]
[402632466,1768731043909,-1367.0,0.00011676,2]
[402632468,1768731043918,-417.0,0.00011676,2]
[402632470,1768731043927,-417.0,0.00011676,2]
[402632472,1768731043936,-715.0,0.00011676,2]
[402632474,1768731043945,-199.584,0.00011676,2]
[402632476,1768731043954,-5704.02,0.00011705,2]
[402632478,1768731043963,-152.0,0.00011714,2]
[402632480,1768731043972,-152.0,0.00011714,2]
[402632482,1768731043981,-152.0,0.00011714,2]
[402632483,1768731043991,-152.0,0.00011714,2]
[402632485,1768731044000,-152.0,0.00011714,2]
[402632487,1768731044011,-240.0,0.00011714,2]
[402632489,1768731044020,-385.01405179,0.00011871,2]
[402632491,1768731044031,-222.029,0.00011902,2]
[402632493,1768731044040,-200.995,0.00011902,2]
[402632496,1768731044050,-232.595,0.00011902,2]
[402632497,1768731044059,-244.298,0.00011902,2]
[402632498,1768731044067,-250.0,0.00011902,2]
[402632499,1768731044077,-200.096,0.00011902,2]
[402632500,1768731044087,-261.711,0.00011902,2]
[402632501,1768731044096,-267.733,0.00011902,2]
[402632502,1768731044106,-289.0351326,0.00011928,2]
[402632503,1768731044115,-2398.4119403,0.00011962,2]
[402632505,1768731044124,-496.47127164,0.00011963,2]
[402632507,1768731044133,-823.0,0.00012179,2]
[402632509,1768731044142,-219.95,0.00012329,2]
[402632511,1768731044151,-500.0,0.00012329,2]
[402632513,1768731044160,-500.0,0.00012329,2]
[402632515,1768731044169,-500.0,0.00012329,2]
[402632517,1768731044179,-500.0,0.00012329,2]
[402632519,1768731044188,-500.0,0.00012329,2]
[402632521,1768731044197,-500.0,0.00012329,2]
[402632523,1768731044206,-500.0,0.00012329,2]
[402632525,1768731044216,-500.0,0.00012329,2]
[402632527,1768731044225,-8.65619115,0.00012329,2]
[402632530,1768731044237,-491.34380885,0.00012329,2]
[402632531,1768731044247,-500.0,0.00012329,2]